fUSD/lending_fUSD_20240114
["ID","MTS","AMOUNT","RATE_DAILY","PERIOD"]
[311573050,1705252286949,-561.5077051,0.00031232,2]
[311573051,1705252286959,-500.0,0.00031232,2]
[311573052,1705252286968,-820.3,0.00031232,2]
[311573053,1705252286977,-500.0,0.00031232,2]
[311573054,1705252286986,-1307.54,0.00031232,2]
[311573055,1705252286995,-2023.36,0.00031232,2]
[311573056,1705252287004,-500.0,0.00031232,2]
[311573057,1705252287014,-662.33,0.00031232,2]
[311573058,1705252287024,-500.0,0.00031232,2]
[311573059,1705252287033,-500.0,0.00031232,2]
[311573060,1705252287042,-500.0,0.00031232,2]
[311573061,1705252287051,-1167.96,0.00031232,2]
[311573062,1705252287060,-1114.79,0.00031232,2]
[311573063,1705252287069,-795.11,0.00031232,2]
[311573064,1705252287078,-552.91327593,0.00031232,2]
[311573065,1705252287087,-500.0,0.00031232,2]
[311573066,1705252287096,-316.8485903,0.00031232,2]
[311573067,1705252287105,-500.0,0.00031232,2]
[311573068,1705252287114,-500.0,0.00031232,2]
[311573069,1705252287123,-500.0,0.00031232,2]
[311573070,1705252287133,-500.0,0.00031232,2]
[311573071,1705252287143,-508.28,0.00031232,2]
[311573072,1705252287152,-500.0,0.00031232,2]
[311573073,1705252287162,-850.9,0.00031232,2]
[311573074,1705252287171,-500.0,0.00031232,2]
[311573075,1705252287181,-823.12,0.00031232,2]
[311573076,1705252287190,-2060.81,0.00031232,2]
[311573077,1705252287199,-500.0,0.00031232,2]
[311573078,1705252287207,-1110.75,0.00031232,2]
[311573079,1705252287217,-709.7,0.00031232,2]
[311573080,1705252287226,-500.0,0.00031232,2]
[311573081,1705252287235,-500.0,0.00031232,2]
[311573082,1705252287245,-664.23,0.00031232,2]
[311573083,1705252287254,-521.36867774,0.00031232,2]
[311573084,1705252287264,-1023.27,0.00031232,2]
[311573085,1705252287273,-733.79,0.00031232,2]
[311573086,1705252287282,-3195.49,0.00031232,2]
[311573087,1705252287292,-159.75088438,0.00031232,2]
[311573088,1705252287301,-500.0,0.00031232,2]
[311573089,1705252287310,-1885.84,0.00031232,2]
[311573090,1705252287320,-500.0,0.00031232,2]
[311573091,1705252287329,-757.2,0.00031232,2]
[311573092,1705252287339,-500.0,0.00031232,2]
[311573093,1705252287348,-500.0,0.00031232,2]
[311573094,1705252287358,-506.43977798,0.00031232,2]
[311573095,1705252287367,-500.0,0.00031232,2]
[311573096,1705252287377,-500.0,0.00031232,2]
[311573097,1705252287386,-863.68,0.00031232,2]
[311573098,1705252287395,-522.26907029,0.00031232,2]
[311573099,1705252287405,-500.0,0.00031232,2]
[311573100,1705252287414,-500.0,0.00031232,2]
[311573101,1705252287423,-500.0,0.00031232,2]
[311573102,1705252287432,-829.78,0.00031232,2]
[311573103,1705252287442,-500.0,0.00031232,2]
[311573104,1705252287451,-917.51,0.00031232,2]
[311573105,1705252287461,-1020.24,0.00031232,2]
[311573106,1705252287470,-500.0,0.00031232,2]
[311573107,1705252287479,-1281.11,0.00031232,2]
[311573108,1705252287489,-500.0,0.00031232,2]
[311573109,1705252287499,-600.41,0.00031232,2]
[311573110,1705252287508,-1227.04,0.00031232,2]
[311573111,1705252287519,-500.0,0.00031232,2]
[311573112,1705252287528,-500.0,0.00031232,2]
[311573113,1705252287539,-500.0,0.00031232,2]
[311573114,1705252287548,-1999.83,0.00031232,2]
[311573115,1705252287558,-500.0,0.00031232,2]
[311573116,1705252287568,-746.49,0.00031232,2]
[311573117,1705252287578,-1132.45,0.00031232,2]
[311573118,1705252287589,-500.0,0.00031232,2]
[311573119,1705252287599,-1460.45,0.00031232,2]
[311573120,1705252287609,-300.0,0.00031232,2]
[311573121,1705252287619,-500.0,0.00031232,2]
[311573122,1705252287629,-1320.94,0.00031232,2]
[311573123,1705252287639,-722.68,0.00031232,2]
[311573124,1705252287648,-174.08452392,0.00031232,2]
[311573125,1705252287657,-1205.87,0.00031232,2]
[311573126,1705252287667,-500.0,0.00031232,2]
[311573127,1705252287676,-500.0,0.00031232,2]
[311573128,1705252287685,-500.0,0.00031232,2]
[311573129,1705252287695,-1773.28,0.00031232,2]
[311573130,1705252287704,-563.75,0.00031232,2]
[311573131,1705252287714,-810.08,0.00031232,2]
[311573132,1705252287723,-500.0,0.00031232,2]
[311573133,1705252287733,-1207.56,0.00031232,2]
[311573134,1705252287743,-895.09,0.00031232,2]
[311573135,1705252287754,-1058.04,0.00031232,2]
[311573136,1705252287766,-2542.75,0.00031232,2]
[311573137,1705252287775,-500.0,0.00031232,2]
[311573138,1705252287787,-1000.0,0.00031232,2]
[311573139,1705252287797,-500.0,0.00031232,2]
[311573140,1705252287807,-842.4,0.00031232,2]
[311573141,1705252287817,-500.0,0.00031232,2]
[311573142,1705252287827,-500.0,0.00031232,2]
[311573143,1705252287838,-500.0,0.00031232,2]
[311573144,1705252287847,-1525.23,0.00031232,2]
[311573145,1705252287857,-500.0,0.00031232,2]
[311573146,1705252287867,-1991.27,0.00031232,2]
[311573147,1705252287876,-500.0,0.00031232,2]
[311573148,1705252287885,-500.0,0.00031232,2]
[311573149,1705252287895,-726.91,0.00031232,2]
[311573150,1705252287904,-500.0,0.00031232,2]
[311573151,1705252287913,-681.84,0.00031232,2]
[311573152,1705252287923,-1443.03,0.00031232,2]
[311573153,1705252287933,-500.0,0.00031232,2]
[311573154,1705252287942,-1460.0,0.00031232,2]
[311573155,1705252287952,-500.0,0.00031232,2]
[311573156,1705252287962,-1061.14,0.00031232,2]
[311573157,1705252287971,-500.0,0.00031232,2]
[311573158,1705252287981,-1092.47,0.00031232,2]
[311573159,1705252287991,-1128.45,0.00031232,2]
[311573160,1705252288000,-258.96549675,0.00031232,2]
[311573161,1705252288011,-500.0,0.00031232,2]
[311573162,1705252288020,-175.86313812,0.00031232,2]
[311573163,1705252288029,-627.26040697,0.00031232,2]
[311573164,1705252288039,-930.07,0.00031232,2]
[311573165,1705252288048,-804.22,0.00031232,2]
[311573166,1705252288057,-792.09,0.00031232,2]
[311573167,1705252288067,-575.58,0.00031232,2]
[311573168,1705252288078,-1171.52,0.00031232,2]
[311573169,1705252288087,-500.0,0.00031232,2]
[311573170,1705252288096,-560.99,0.00031232,2]
[311573171,1705252288106,-500.0,0.00031232,2]
[311573172,1705252288115,-500.0,0.00031232,2]
[311573173,1705252288125,-500.0,0.00031232,2]
[311573174,1705252288135,-500.0,0.00031232,2]
[311573175,1705252288144,-1559.96,0.00031232,2]
[311573176,1705252288154,-1868.49,0.00031232,2]
[311573177,1705252288164,-706.1,0.00031232,2]
[311573178,1705252288173,-538.67,0.00031232,2]
[311573179,1705252288182,-954.86,0.00031232,2]
[311573180,1705252288194,-500.0,0.00031232,2]
[311573181,1705252288203,-918.75,0.00031232,2]
[311573182,1705252288213,-500.0,0.00031232,2]
[311573183,1705252288224,-2188.29,0.00031232,2]
[311573184,1705252288234,-500.0,0.00031232,2]
[311573185,1705252288244,-986.25,0.00031232,2]
[311573186,1705252288253,-591.33,0.00031232,2]
[311573187,1705252288263,-1308.37,0.00031232,2]
[311573188,1705252288273,-913.77,0.00031232,2]
[311573189,1705252288282,-500.0,0.00031232,2]
[311573190,1705252288293,-500.0,0.00031232,2]
[311573191,1705252288302,-500.0,0.00031232,2]
[311573192,1705252288312,-815.77,0.00031232,2]
[311573193,1705252288321,-500.0,0.00031232,2]
[311573194,1705252288331,-500.0,0.00031232,2]
[311573195,1705252288341,-500.0,0.00031232,2]
[311573196,1705252288351,-500.0,0.00031232,2]
[311573197,1705252288360,-1262.51,0.00031232,2]
[311573198,1705252288370,-500.0,0.00031232,2]
[311573199,1705252288379,-500.0,0.00031232,2]
[311573200,1705252288390,-1000.0,0.00031232,2]
[311573201,1705252288399,-500.0,0.00031232,2]
[311573202,1705252288409,-1331.58,0.00031232,2]
[311573203,1705252288419,-1516.94,0.00031232,2]
[311573204,1705252288429,-562.07,0.00031232,2]
[311573205,1705252288438,-629.6,0.00031232,2]
[311573206,1705252288447,-1331.6,0.00031232,2]
[311573207,1705252288457,-748.5,0.00031232,2]
[311573208,1705252288467,-643.99,0.00031232,2]
[311573209,1705252288477,-809.43,0.00031232,2]
[311573210,1705252288486,-1249.64,0.00031232,2]
[311573211,1705252288495,-500.0,0.00031232,2]
[311573212,1705252288505,-500.0,0.00031232,2]
[311573213,1705252288517,-730.81,0.00031232,2]
[311573214,1705252288526,-1260.42,0.00031232,2]
[311573215,1705252288535,-977.41,0.00031232,2]
[311573216,1705252288544,-500.0,0.00031232,2]
[311573217,1705252288554,-706.44,0.00031232,2]
[311573218,1705252288563,-704.42,0.00031232,2]
[311573219,1705252288573,-500.0,0.00031232,2]
[311573220,1705252288583,-1054.04,0.00031232,2]
[311573221,1705252288593,-500.0,0.00031232,2]
[311573222,1705252288602,-500.0,0.00031232,2]
[311573223,1705252288612,-500.0,0.00031232,2]
[311573224,1705252288622,-500.0,0.00031232,2]
[311573225,1705252288633,-1099.5,0.00031232,2]
[311573226,1705252288643,-500.0,0.00031232,2]
[311573227,1705252288654,-500.0,0.00031232,2]
[311573228,1705252288663,-500.0,0.00031232,2]
[311573229,1705252288673,-336.54399643,0.00031232,2]
[311573230,1705252288683,-743.27,0.00031232,2]
[311573231,1705252288693,-835.81,0.00031232,2]
[311573232,1705252288702,-820.16,0.00031232,2]
[311573233,1705252288712,-500.7,0.00031232,2]
[311573234,1705252288724,-514.13,0.00031232,2]
[311573235,1705252288734,-1035.25,0.00031232,2]
[311573236,1705252288744,-854.02,0.00031232,2]
[311573237,1705252288754,-2187.41,0.00031232,2]
[311573238,1705252288765,-500.0,0.00031232,2]
[311573239,1705252288774,-746.89,0.00031232,2]
[311573240,1705252288784,-500.0,0.00031232,2]
[311573241,1705252288793,-500.0,0.00031232,2]
[311573242,1705252288803,-1874.06,0.00031232,2]
[311573243,1705252288813,-500.0,0.00031232,2]
[311573244,1705252288823,-500.0,0.00031232,2]
[311573245,1705252288832,-1599.15,0.00031232,2]
[311573246,1705252288842,-500.0,0.00031232,2]
[311573247,1705252288851,-500.0,0.00031232,2]
[311573248,1705252288861,-500.0,0.00031232,2]
[311573249,1705252288870,-2449.88,0.00031232,2]
[311573250,1705252288879,-314.83501757,0.00031232,2]
[311573251,1705252288890,-816.92,0.00031232,2]
[311573252,1705252288900,-500.0,0.00031232,2]
[311573253,1705252288910,-580.30933952,0.00031232,2]
[311573254,1705252288920,-607.62,0.00031232,2]
[311573255,1705252288929,-505.6733083,0.00031232,2]
[311573256,1705252288938,-500.0,0.00031232,2]
[311573257,1705252288948,-1717.02,0.00031232,2]
[311573258,1705252288959,-509.43662369,0.00031232,2]
[311573259,1705252288969,-500.0,0.00031232,2]
[311573260,1705252288979,-526.63551399,0.00031232,2]
[311573261,1705252288988,-500.0,0.00031232,2]
[311573262,1705252288998,-500.0,0.00031232,2]
[311573263,1705252289007,-585.51,0.00031232,2]
[311573264,1705252289017,-846.57,0.00031232,2]
[311573265,1705252289026,-1192.35,0.00031232,2]
[311573266,1705252289036,-556.01,0.00031232,2]
[311573267,1705252289046,-500.0,0.00031232,2]
[311573268,1705252289057,-311.49,0.00031232,2]
[311573269,1705252289066,-753.23,0.00031232,2]
[311573270,1705252289076,-1217.56,0.00031232,2]
[311573271,1705252289086,-564.68,0.00031232,2]
[311573272,1705252289095,-1646.67,0.00031232,2]
[311573273,1705252289105,-2611.38,0.00031232,2]
[311573274,1705252289114,-500.0,0.00031232,2]
[311573275,1705252289124,-500.0,0.00031232,2]
[311573276,1705252289133,-602.69,0.00031232,2]
[311573277,1705252289143,-500.0,0.00031232,2]
[311573278,1705252289153,-2089.38,0.00031232,2]
[311573279,1705252289162,-516.22219812,0.00031232,2]
[311573280,1705252289172,-500.0,0.00031232,2]
[311573281,1705252289182,-1435.9,0.00031232,2]
[311573282,1705252289191,-608.6874924,0.00031232,2]
[311573283,1705252289201,-954.59,0.00031232,2]
[311573284,1705252289211,-1925.77,0.00031232,2]
[311573285,1705252289221,-500.0,0.00031232,2]
[311573286,1705252289230,-652.19,0.00031232,2]
[311573287,1705252289240,-552.02,0.00031232,2]
[311573288,1705252289250,-500.0,0.00031232,2]
[311573289,1705252289261,-1686.3,0.00031232,2]
[311573290,1705252289271,-531.8,0.00031232,2]
[311573291,1705252289280,-500.0,0.00031232,2]
[311573292,1705252289290,-465.3156657,0.00031232,2]
[311573293,1705252289300,-500.0,0.00031232,2]
[311573294,1705252289310,-500.0,0.00031232,2]
[311573295,1705252289320,-1006.64,0.00031232,2]
[311573296,1705252289329,-500.0,0.00031232,2]
[311573297,1705252289339,-500.0,0.00031232,2]
[311573298,1705252289349,-500.0,0.00031232,2]
[311573299,1705252289359,-500.0,0.00031232,2]
[311573300,1705252289369,-500.0,0.00031232,2]
[311573301,1705252289379,-500.0,0.00031232,2]
[311573302,1705252289388,-500.0,0.00031232,2]
[311573303,1705252289398,-500.0,0.00031232,2]
[311573304,1705252289409,-500.0,0.00031232,2]
[311573305,1705252289419,-500.0,0.00031232,2]
[311573306,1705252289429,-500.0,0.00031232,2]
[311573307,1705252289438,-500.0,0.00031232,2]
[311573308,1705252289448,-4875.25,0.00031232,2]
[311573309,1705252289458,-994.5,0.00031232,2]
[311573310,1705252289467,-632.51,0.00031232,2]
[311573311,1705252289477,-1458.22,0.00031232,2]
[311573312,1705252289486,-540.94,0.00031232,2]
[311573313,1705252289496,-500.0,0.00031232,2]
[311573314,1705252289505,-1282.02,0.00031232,2]
[311573315,1705252289515,-556.06,0.00031232,2]
[311573316,1705252289524,-500.0,0.00031232,2]
[311573317,1705252289534,-1042.49,0.00031232,2]
[311573318,1705252289544,-481.50246512,0.00031232,2]
[311573319,1705252289554,-500.0,0.00031232,2]
[311573320,1705252289565,-2344.08,0.00031232,2]
[311573321,1705252289575,-1099.02,0.00031232,2]
[311573322,1705252289585,-552.52650934,0.00031232,2]
[311573323,1705252289594,-500.0,0.00031232,2]
[311573324,1705252289831,-1216.07,0.00031232,2]
[311573325,1705252289843,-522.91,0.00031232,2]
[311573326,1705252289852,-600.25,0.00031232,2]
[311573327,1705252289861,-500.0,0.00031232,2]
[311573328,1705252289871,-500.0,0.00031232,2]
[311573329,1705252289881,-1971.59,0.00031232,2]
[311573330,1705252289890,-722.24,0.00031232,2]
[311573331,1705252289900,-1123.73,0.00031232,2]
[311573332,1705252289910,-768.64,0.00031232,2]
[311573333,1705252289920,-500.0,0.00031232,2]
[311573334,1705252289930,-625.0,0.00031232,2]
[311573335,1705252289939,-500.0,0.00031232,2]
[311573336,1705252289950,-881.92,0.00031232,2]
[311573337,1705252289959,-500.0,0.00031232,2]
[311573338,1705252289969,-500.0,0.00031232,2]
[311573339,1705252289977,-505.93020304,0.00031232,2]
[311573340,1705252289987,-796.46,0.00031232,2]
[311573341,1705252289996,-1228.35,0.00031232,2]
[311573342,1705252290005,-500.0,0.00031232,2]
[311573343,1705252290015,-968.5,0.00031232,2]
[311573344,1705252290024,-500.0,0.00031232,2]
[311573345,1705252290034,-912.91,0.00031232,2]
[311573346,1705252290043,-35539.27,0.00031232,2]
[311573347,1705252290053,-1538.92,0.00031232,2]
[311573348,1705252290062,-753.36,0.00031232,2]
[311573349,1705252290072,-174.35320146,0.00031232,2]
[311573350,1705252290081,-2773.15,0.00031232,2]
[311573351,1705252290090,-845.72,0.00031232,2]
[311573352,1705252290100,-500.0,0.00031232,2]
[311573353,1705252290109,-500.0,0.00031232,2]
[311573354,1705252290119,-593.33,0.00031232,2]
[311573355,1705252290128,-1360.03,0.00031232,2]
[311573356,1705252290137,-500.0,0.00031232,2]
[311573357,1705252290147,-500.0,0.00031232,2]
[311573358,1705252290156,-4393.52,0.00031232,2]
[311573359,1705252290166,-907.99,0.00031232,2]
[311573360,1705252290175,-1000.0,0.00031232,2]
[311573361,1705252290184,-500.0,0.00031232,2]
[311573362,1705252290194,-500.0,0.00031232,2]
[311573363,1705252290203,-1520.18,0.00031232,2]
[311573364,1705252290212,-500.0,0.00031232,2]
[311573365,1705252290221,-1233.91,0.00031232,2]
[311573366,1705252290231,-746.94,0.00031232,2]
[311573367,1705252290243,-1579.37,0.00031232,2]
[311573368,1705252290252,-977.1,0.00031232,2]
[311573369,1705252290263,-500.0,0.00031232,2]
[311573370,1705252290272,-540.78,0.00031232,2]
[311573371,1705252290281,-797.54,0.00031232,2]
[311573372,1705252290291,-500.0,0.00031232,2]
[311573373,1705252290300,-500.0,0.00031232,2]
[311573374,1705252290311,-2254.7,0.00031232,2]
[311573375,1705252290321,-926.27,0.00031232,2]
[311573376,1705252290330,-2556.16,0.00031232,2]
[311573377,1705252290339,-500.0,0.00031232,2]
[311573378,1705252290349,-2209.2,0.00031232,2]
[311573379,1705252290359,-500.0,0.00031232,2]
[311573380,1705252290368,-1514.05,0.00031232,2]
[311573381,1705252290378,-500.0,0.00031232,2]
[311573382,1705252290387,-1504.88,0.00031232,2]
[311573383,1705252290397,-500.0,0.00031232,2]
[311573384,1705252290407,-2483.68,0.00031232,2]
[311573385,1705252290416,-500.0,0.00031232,2]
[311573386,1705252290425,-574.24,0.00031232,2]
[311573387,1705252290435,-500.0,0.00031232,2]
[311573388,1705252290444,-1018.17,0.00031232,2]
[311573389,1705252290453,-643.61,0.00031232,2]
[311573390,1705252290462,-543.2,0.00031232,2]
[311573391,1705252290471,-1223.0,0.00031232,2]
[311573392,1705252290481,-2697.47,0.00031232,2]
[311573393,1705252290490,-847.84,0.00031232,2]
[311573394,1705252290500,-3144.48,0.00031232,2]
[311573395,1705252290509,-1690.9,0.00031232,2]
[311573396,1705252290520,-500.0,0.00031232,2]
[311573397,1705252290529,-4195.55,0.00031232,2]
[311573398,1705252290540,-15637.48,0.00031232,2]
[311573399,1705252290549,-500.0,0.00031232,2]
[311573400,1705252290558,-7596.12,0.00031232,2]
[311573401,1705252290568,-13163.35,0.00031232,2]
[311573402,1705252290577,-2237.23,0.00031232,2]
[311573403,1705252290587,-500.0,0.00031232,2]
[311573404,1705252290596,-500.0,0.00031232,2]
[311573405,1705252290605,-500.0,0.00031232,2]
[311573406,1705252290614,-2501.43,0.00031232,2]
[311573407,1705252290623,-602.22,0.00031232,2]
[311573408,1705252290633,-443.49288994,0.00031232,2]
[311573409,1705252290642,-500.0,0.00031232,2]
[311573410,1705252290652,-500.0,0.00031232,2]
[311573411,1705252290661,-2052.95,0.00031232,2]
[311573412,1705252290670,-4038.49,0.00031232,2]
[311573413,1705252290680,-9329.65,0.00031232,2]
[311573414,1705252290689,-500.0,0.00031232,2]
[311573415,1705252290698,-500.0,0.00031232,2]
[311573416,1705252290708,-2046.19,0.00031232,2]
[311573417,1705252290717,-500.0,0.00031232,2]
[311573418,1705252290727,-500.0,0.00031232,2]
[311573419,1705252290737,-500.0,0.00031232,2]
[311573420,1705252290746,-5406.14,0.00031232,2]
[311573421,1705252290757,-500.0,0.00031232,2]
[311573422,1705252290768,-500.0,0.00031232,2]
[311573423,1705252290779,-6443.32,0.00031232,2]
[311573424,1705252290789,-2591.43,0.00031232,2]
[311573425,1705252290798,-500.0,0.00031232,2]
[311573426,1705252290807,-462.36269342,0.00031232,2]
[311573427,1705252290817,-500.0,0.00031232,2]
[311573428,1705252290826,-500.0,0.00031232,2]
[311573429,1705252290835,-500.0,0.00031232,2]
[311573430,1705252290845,-2526.32,0.00031232,2]
[311573431,1705252290854,-3495.11,0.00031232,2]
[311573432,1705252290864,-500.0,0.00031232,2]
[311573433,1705252290873,-1951.59,0.00031232,2]
[311573434,1705252290882,-1152.89,0.00031232,2]
[311573435,1705252290891,-500.0,0.00031232,2]
[311573436,1705252290901,-500.0,0.00031232,2]
[311573437,1705252290910,-1678.34,0.00031232,2]
[311573438,1705252290919,-4453.87,0.00031232,2]
[311573439,1705252290929,-1018.23,0.00031232,2]
[311573440,1705252290939,-1430.39,0.00031232,2]
[311573441,1705252290948,-7026.91,0.00031232,2]
[311573442,1705252290958,-500.0,0.00031232,2]
[311573443,1705252290968,-1925.55,0.00031232,2]
[311573444,1705252290977,-858.04,0.00031232,2]
[311573445,1705252290986,-639.77,0.00031232,2]
[311573446,1705252290995,-1494.12,0.00031232,2]
[311573447,1705252291005,-333.76532852,0.00031232,2]
[311573448,1705252291014,-500.0,0.00031232,2]
[311573449,1705252291023,-3493.55,0.00031232,2]
[311573450,1705252291033,-500.0,0.00031232,2]
[311573451,1705252291042,-1678.6,0.00031232,2]
[311573452,1705252291052,-500.0,0.00031232,2]
[311573453,1705252291061,-500.0,0.00031232,2]
[311573454,1705252291070,-539.82,0.00031232,2]
[311573455,1705252291079,-500.0,0.00031232,2]
[311573456,1705252291089,-500.0,0.00031232,2]
[311573457,1705252291098,-1647.84,0.00031232,2]
[311573458,1705252291107,-534.79,0.00031232,2]
[311573459,1705252291117,-500.0,0.00031232,2]
[311573460,1705252291126,-2587.79,0.00031232,2]
[311573461,1705252291136,-4664.45,0.00031232,2]
[311573462,1705252291145,-500.0,0.00031232,2]
[311573463,1705252291154,-797.9,0.00031232,2]
[311573464,1705252291164,-1743.36,0.00031232,2]
[311573465,1705252291174,-500.0,0.00031232,2]
[311573466,1705252291183,-500.0,0.00031232,2]
[311573467,1705252291193,-570.38,0.00031232,2]
[311573468,1705252291203,-3574.89,0.00031232,2]
[311573469,1705252291213,-2513.83,0.00031232,2]
[311573470,1705252291222,-3210.63,0.00031232,2]
[311573471,1705252291231,-500.0,0.00031232,2]
[311573472,1705252291241,-747.77,0.00031232,2]
[311573473,1705252291251,-2062.81,0.00031232,2]
[311573474,1705252291260,-519.06750816,0.00031232,2]
[311573475,1705252291270,-500.0,0.00031232,2]
[311573476,1705252291279,-674.96,0.00031232,2]
[311573477,1705252291289,-289.11740338,0.00031232,2]
[311573478,1705252291299,-1040.49,0.00031232,2]
[311573479,1705252291308,-2377.35,0.00031232,2]
[311573480,1705252291318,-500.0,0.00031232,2]
[311573481,1705252291328,-12144.81,0.00031232,2]
[311573482,1705252291337,-500.0,0.00031232,2]
[311573483,1705252291348,-500.0,0.00031232,2]
[311573484,1705252291358,-546.04,0.00031232,2]
[311573485,1705252291369,-500.0,0.00031232,2]
[311573486,1705252291379,-7506.39,0.00031232,2]
[311573487,1705252291388,-749.5,0.00031232,2]
[311573488,1705252291398,-536.52,0.00031232,2]
[311573489,1705252291407,-2599.12,0.00031232,2]
[311573490,1705252291417,-588.11,0.00031232,2]
[311573491,1705252291426,-559.01,0.00031232,2]
[311573492,1705252291437,-1465.44,0.00031232,2]
[311573493,1705252291446,-6554.82,0.00031232,2]
[311573494,1705252291456,-500.0,0.00031232,2]
[311573495,1705252291465,-1329.38,0.00031232,2]
[311573496,1705252291475,-1946.34,0.00031232,2]
[311573497,1705252291484,-500.0,0.00031232,2]
[311573498,1705252291494,-500.0,0.00031232,2]
[311573499,1705252291503,-1136.62,0.00031232,2]
[311573500,1705252291514,-5430.89,0.00031232,2]
[311573501,1705252291524,-796.83,0.00031232,2]
[311573502,1705252291533,-500.0,0.00031232,2]
[311573503,1705252291543,-2322.96,0.00031232,2]
[311573504,1705252291553,-61633.02,0.00031232,2]
[311573505,1705252291562,-500.0,0.00031232,2]
[311573506,1705252291572,-500.0,0.00031232,2]
[311573507,1705252291582,-500.0,0.00031232,2]
[311573508,1705252291592,-500.0,0.00031232,2]
[311573509,1705252291601,-1778.55,0.00031232,2]
[311573510,1705252291611,-1790.83,0.00031232,2]
[311573511,1705252291621,-500.0,0.00031232,2]
[311573512,1705252291631,-22604.09,0.00031232,2]
[311573513,1705252291640,-2356.56,0.00031232,2]
[311573514,1705252291649,-869.55,0.00031232,2]
[311573515,1705252291658,-500.0,0.00031232,2]
[311573516,1705252291669,-1980.57,0.00031232,2]
[311573517,1705252291679,-4074.52,0.00031232,2]
[311573518,1705252291688,-2141.21,0.00031232,2]
[311573519,1705252291698,-5195.33,0.00031232,2]
[311573520,1705252291707,-1229.8,0.00031232,2]
[311573521,1705252291717,-1076.46,0.00031232,2]
[311573522,1705252291726,-500.0,0.00031232,2]
[311573523,1705252291736,-1807.57,0.00031232,2]
[311573524,1705252291746,-4351.31,0.00031232,2]
[311573525,1705252291757,-1715.26,0.00031232,2]
[311573526,1705252291768,-7640.79,0.00031232,2]
[311573527,1705252291776,-500.0,0.00031232,2]
[311573528,1705252291785,-902.59,0.00031232,2]
[311573529,1705252291795,-500.0,0.00031232,2]
[311573530,1705252291805,-1082.75,0.00031232,2]
[311573531,1705252291814,-592.57,0.00031232,2]
[311573532,1705252291824,-500.0,0.00031232,2]
[311573533,1705252291835,-3610.33,0.00031232,2]
[311573534,1705252291845,-2984.29,0.00031232,2]
[311573535,1705252291855,-4594.32,0.00031232,2]
[311573536,1705252291865,-4251.43,0.00031232,2]
[311573537,1705252291874,-1696.28,0.00031232,2]
[311573538,1705252291883,-1901.97,0.00031232,2]
[311573539,1705252291893,-500.0,0.00031232,2]
[311573540,1705252291902,-904.7,0.00031232,2]
[311573541,1705252291912,-22955.6,0.00031232,2]
[311573542,1705252291922,-1364.34,0.00031232,2]
[311573543,1705252291931,-833.48,0.00031232,2]
[311573544,1705252291941,-517.44,0.00031232,2]
[311573545,1705252291950,-500.0,0.00031232,2]
[311573546,1705252291959,-1054.06,0.00031232,2]
[311573547,1705252291969,-1158.82,0.00031232,2]
[311573548,1705252291978,-3356.05,0.00031232,2]
[311573549,1705252291988,-2618.39,0.00031232,2]